Workbook

Sheet 5-4 EU ID 1&2 ULSD CE
B1: Table 5-4. Annualized Costs for ULSD Combustion in
B2: the Diesel-fired Simple Cycle Gas Turbines (EU ID 1 and 2)
I4: Shaded cells indicate user inputs
B5: Cost Effectiveness Determination - ULSD Fuel Switch - No Additional Tank Storage | J5: Date:
B6: Project: | D6: GVEA Zhender - SO2 BACT Analysis (EU ID 1 and 2 - Frame 5 CTs, cost per turbine) | J6: Prepared By:
J7: Checked By:
J8: Rev:
B9: Annualized Costs
B10: DIRECT ANNUAL COSTS | E10: QTY | F10: UNIT | H10: TOTAL MATERIALS COST | I10: TOTAL LABOR COST | K10: TOTAL
B11: (1) | C11: Operating & Maintenance Costs | F11: % | I11: ='[1]Total Capital Investment'!K44*E11/E40 -> 0 | K11: =I11 -> 0
B12: (2) | C12: Repair & Replacement Costs | F12: % | I12: =E12*'[1]Total Capital Investment'!K47/10 -> 0 | K12: =I12 -> 0
B13: (3) | C13: Maintenance Materials | F13: LOT
B14: (4) | C14: Utilities
C15: (a) | D15: ULSD Costs: | E15: 18059076.92 | F15: GAL | G15: 0.2668 | H15: =E15*G15 -> 4818161.722 | K15: =H15 -> 4818161.722
B17: Total Direct Annual Costs (TDAC) | J17: TDAC = | K17: =SUM(K11:K15) -> 4818161.722
B19: INDIRECT ANNUAL COSTS
B20: (5) | C20: Overhead | F20: % | I20: =E20*G20 -> 0 | K20: =I20 -> 0
B21: (6) | C21: Administrative Charges, Property Taxes, Insurance | F21: % of capital | I21: =E21*'[1]Total Capital Investment'!K62 -> 0 | K21: =I21 -> 0
C22: Capital Recovery Factor [see inputs below] | E22: =($E$39/100*POWER((1+($E$39/100)),$E$40))/((POWER(((1+$E$39/100)),$E$40))-1) -> 0.09439292574
B23: (7) | C23: Capital Recovery | J23: CRF * TCI = | K23: =E22*'[1]Total Capital Investment'!K62 -> 0
B25: Total Indirect Annual Costs (TIAC) (refer to Table 5-10) | J25: TIAC = | K25: ='5-10 NP & Zehnder'!C13 -> 582886.4241
B27: TOTAL ANNUALIZED COSTS (TAC) | J27: TAC = (TDAC) + (TIAC) = | K27: =K17+K25 -> 5401048.146
B29: Cost Effectiveness Summary
B31: TOTAL TONS SO2 AVOIDED PER YEAR | J31: = | K31: =598.6*0.997 -> 596.8042
B33: COST EFFECTIVENESS ($ PER TON AVOIDED BASED ON PTE) | J33: (TAC)/(TPY) = | K33: =K27/K31 -> 9049.949961
D38: Data Inputs for Capital Recovery Factor:
D39: Annual Interest Rate (EPA OAQPS Control Cost Manual) | E39: 7 | F39: %
D40: Project Life (EPA OAQPS Control Cost Manual) | E40: 20 | F40: years

Sheet 5-10 NP & Zehnder
A1: Table 5-10. Capital Cost for New ULSD Storage Based on
A2: PTE Maximum Fuel Use and Historic Actual Use
B5: North Pole EUs 1 and 2 Maximum Fuel Use | C5: Zehnder EUs 1 and 2 Maximum Fuel Use | D5: North Pole EUs 1 and 2 Actual Fuel Use | E5: Zehnder EUs 1 and 2 Actual Fuel Use
A6: Capital Cost Estimate | B6: 30425000 | D6: 21050000
A7: Heat Input, MMBtu/day (combined for each set of combustion turbines) | B7: 32256 | C7: 12864 | D7: 32256 | E7: 12864
A8: Percentage of Heat Input | B8: =B7/(B7+C7) -> 0.714893617 | C8: =C7/(B7+C7) -> 0.285106383 | D8: =D7/(D7+E7) -> 0.714893617 | E8: =E7/(D7+E7) -> 0.285106383
A9: Capital Cost (apportioned based on heat input ratio) | B9: =B8*$B$6 -> 21750638.3 | C9: =C8*$B$6 -> 8674361.702 | D9: =D8*$D$6 -> 15048510.64 | E9: =E8*$D$6 -> 6001489.362
A10: Capital Cost (apportioned per combustion turbine) | B10: =B9/2 -> 10875319.15 | C10: =C9/2 -> 4337180.851 | D10: =D9/2 -> 7524255.319 | E10: =E9/2 -> 3000744.681
A11: Capital Recovery (per combustion turbine) | B11: =B10*B15 -> 1026553.193 | C11: =C10*B15 -> 409399.19 | D11: =D10*B15 -> 710236.4736 | E11: =E10*B15 -> 283249.0698
A12: Administrative Charges, Property Taxes, Insurance (per combustion turbine) | B12: =C23*B10 -> 435012.766 | C12: =C23*C10 -> 173487.234 | D12: =C23*D10 -> 300970.2128 | E12: =C23*E10 -> 120029.7872
A13: Total Annual Indirect Cost (per combustion turbine) | B13: =SUM(B11:B12) -> 1461565.959 | C13: =SUM(C11:C12) -> 582886.4241 | D13: =SUM(D11:D12) -> 1011206.686 | E13: =SUM(E11:E12) -> 403278.8571
A15: Capital recovery factor | B15: =($C$18/100*POWER((1+($C$18/100)),$C$20))/((POWER(((1+$C$18/100)),$C$20))-1) -> 0.09439292574
A17: Data Inputs for Capital Recovery Factor:
A18: Annual Interest Rate (EPA OAQPS Control | C18: 7 | D18: pct.
A19: Cost Manual)
A20: Project Life (EPA OAQPS Control Cost | C20: 20 | D20: years
A21: Manual)
A23: Administrative Charges, Property Taxes | C23: 0.04
A24: Insurance (percentage of total capital
A25: cost)

Sheet ESRI_MAPINFO_SHEET (hidden)
